Cogmind - Beta 16 @@@ ROGUE MODE // 2025.10.26 @ 11:15:13 Player: KeKe Result: Destroyed by Y-45 Defender with Heavy Assault Rifle Performance ------------- Evolutions (0) 0 Regions Visited (3) 600 Robots Destroyed (44) 220 Value Destroyed (579) 579 Prototype IDs (5) 100 Alien Tech Used (0) 0 Bonus (-205) -205 TOTAL SCORE: 1294 Bonus ------- Friendly Fire -205 Cogmind --------- Core Integrity 0/250 Matter 288/300 Energy 140/140 System Corruption 0% Temperature Cool (61) Movement Rolling (110) Location -8/Recycling Parts ------- > --- POWER (1) -------- Deuterium-Ion Engine > --- PROPULSION (2) --- Wheeled Compact Exoskeleton > --- UTILITY (2) ------ Armored Scrap Engine > --- WEAPON (2) ------- EM Pulse Construct/G Ripper > --- INVENTORY (5) ---- High-capacity Matter Pod (200) Structural Scanner Machine Analyzer Shrapnel Trap Peak State ------------ > --- POWER ------------ Deuterium-Ion Engine > --- PROPULSION ------- Wheeled Compact Exoskeleton > --- UTILITY ---------- Armored Scrap Engine > --- WEAPON ----------- EM Pulse Construct/G Ripper > --- INVENTORY -------- High-capacity Matter Pod Structural Scanner Machine Analyzer Shrapnel Trap [Rating: 35] Favorites ----------- Power Light Ion Engine Engine Light Ion Engine Propulsion Wheel Leg Aluminum Leg Wheel Wheel Utility Huge Storage Unit Device Structural Scanner Storage Huge Storage Unit Protection Light Armor Plating Weapon Light Assault Rifle Energy Gun Constructs Ballistic Gun Light Assault Rifle Launcher Subdweller Shrapnel Launcher Special Weapon Mining Laser Slashing Weapon Ripper Build | -11 -10 -10 -8 ------- Run | Yrd Mat Sub Rec Slots Evolved . | . . . . Power . | . . . . Propulsion . | . . . . Utility . | . . . . Weapon . | . . . . Parts Attached 20 | 3 4 8 5 Power 2 | . . 1 1 Engine 2 | . . 1 1 Core . | . . . . Reactor . | . . . . Propulsion 4 | 2 . 1 1 Treads . | . . . . Leg . | . . . . Wheel 4 | 2 . 1 1 Hover . | . . . . Flight . | . . . . Utility 7 | 1 2 2 2 Device 4 | 1 . 2 1 Storage 1 | . 1 . . Processor . | . . . . Hackware . | . . . . Protection 2 | . 1 . 1 Artifact . | . . . . Weapon 7 | . 2 4 1 Energy Gun 1 | . . . 1 Energy Cannon . | . . . . Ballistic Gun 3 | . 1 2 . Ballistic Cannon . | . . . . Launcher 1 | . . 1 . Special Weapon 1 | . 1 . . Impact Weapon . | . . . . Slashing Weapon 1 | . . 1 . Piercing Weapon . | . . . . Special Melee Weapon . | . . . . Unidentified Prototypes 1 | . . . 1 Parts Lost 6 | . . 4 2 Power 2 | . . 1 1 Propulsion 2 | . . 1 1 Utility . | . . . . Weapon 2 | . . 2 . Highest Loss Streak 2 | . . 1 2 To Critical Strikes . | . . . . Average Backups 11 | 5 8 15 5 Power . | 1 1 . . Propulsion 3 | 2 2 4 . Utility 4 | . 3 6 3 Weapon 2 | 1 2 3 . Tool/Special . | . . . . Unused Backups 19 | 8 1 1 9 Power 2 | 1 . 1 . Propulsion 7 | 4 . . 3 Utility 7 | 1 1 . 5 Weapon 3 | 2 . . 1 Tool/Special . | . . . . Average Slot Usage (%) 92 | . 100 99 63 Engine 13 | . 14 13 12 Wheel 25 | . 28 27 15 Device 12 | . 12 11 13 Storage 11 | . 14 14 2 Protection 1 | . 1 2 . Energy Gun 1 | . . . 5 Ballistic Gun 15 | . 26 16 1 Special Weapon 2 | . 1 2 . Slashing Weapon 7 | . . 7 9 Peak Build Rating 35 | 7 8 16 35 Average Rating 13 | 6 7 11 27 On Entrance 8 | 6 7 8 13 Avg Prop Armor Cover (%) . | . . . . Naked Turns . | . . . . Heaviest Build 98 | 13 89 96 98 Greatest Support 26 | 26 26 26 20 Greatest Overweight (x) 8 | . 3 8 4 Average Overweight (x) 2 | . . 3 . Largest Inventory Capacity 25 | 8 25 25 25 Average Capacity 19 | 8 16 25 8 Most Carried 24 | 6 13 23 24 Average Carried 15 | 5 8 20 7 Final Capacity 25 | 8 25 25 5 Final Carried 22 | 6 13 22 4 Scrap Engine Consumption 33 | . . . 33 Constructs Created 3 | . . . 3 Constructs Modified 5 | . . . 5 Class Distribution -------------------- 86% | Mutant 13% | Construct Dominant Class ---------------- Mutant | -10/Materials Mutant | -10/Subcaves Construct | -8/Recycling Resources | -11 -10 -10 -8 ----------- Run | Yrd Mat Sub Rec Matter Collected 1382 | 422 328 442 190 Remotely . | . . . . Salvage Created 1731 | 293 355 88 995 Parts 92 | 28 22 9 33 Haulers Intercepted 2 | . 2 . . Recyclers Shooed 4 | 1 . . 3 Parts Field Recycled . | . . . . Retrieved Matter . | . . . . Parts Self-Destructed 8 | . . 8 . Prevented . | . . . . Parts Restored . | . . . . Kills | -11 -10 -10 -8 ------- Run | Yrd Mat Sub Rec Combat Hostiles Destroyed 13 | . 3 7 3 Guns 3 | . 3 . . AOE 10 | . . 7 3 Classes Destroyed 11 | 3 3 3 2 Worker 3 | 3 . . . Builder 3 | . 2 . 1 Tunneler 9 | 8 1 . . Hauler 2 | . 2 . . Recycler 12 | 1 1 . 10 Turret 1 | . . 1 . Swarmer 6 | . . 6 . Grunt 3 | . 3 . . Subdweller 1 | . . 1 . Scientist 2 | . . . 2 Scrapper 3 | . . . 3 Thug 1 | . . 1 . Best Kill Streak 5 | 3 3 3 5 Combat Bots Only 3 | . 1 3 3 Max Kills in Single Turn 4 | 1 1 4 3 Gunslinging . | . . . . Exploded 3 | . . 3 1 Melee . | . . . . Uniques/NPCs Destroyed . | . . . . Combat | -11 -10 -10 -8 -------- Run | Yrd Mat Sub Rec Hostile Shots Fired 94 | . 16 54 24 Missed 29 | . 5 22 2 Hits 65 | . 11 32 22 Projectile 65 | . 11 32 22 Damage Taken 1198 | . 122 552 524 Core 253 | . 23 109 121 Absorbed by Shields . | . . . . Regen/Repaired (Parts) 55 | . . . 55 Core Remaining (%) 100 | 100 . . . Volleys Fired 189 | 83 37 43 26 Largest 2 | 2 2 2 2 Hottest 100 | 40 100 100 80 Shots Fired 323 | 166 66 62 29 Gun 290 | 166 58 42 24 Cannon . | . . . . Launcher 8 | . . 3 5 Special 25 | . 8 17 . Kinetic 274 | 166 58 45 5 Thermal 25 | . 8 17 . Explosive . | . . . . Electromagnetic 24 | . . . 24 Robot Hit Streak 9 | 6 9 8 9 Robot Miss Streak 5 | 5 2 4 3 Penetration Max . | . . . . Secondary Targets . | . . . . Shots Hit Robots 174 | 80 37 31 26 Core Hits 79 | 23 19 20 17 Critical Kills . | . . . . Critical Parts Destroyed . | . . . . Critical Strikes . | . . . . Melee Attacks 8 | . . 3 5 Impact . | . . . . Slashing 8 | . . 3 5 Piercing . | . . . . Sneak Attacks 4 | . . . 4 Combat Hostiles . | . . . . Follow-up Attacks . | . . . . Damage Inflicted 2896 | 587 376 787 1146 Guns 1598 | 587 376 310 325 Cannons . | . . . . Explosions 997 | . . 477 520 Melee 301 | . . . 301 Ramming . | . . . . Kinetic 2270 | 587 376 787 520 Thermal . | . . . . Explosive . | . . . . Electromagnetic 325 | . . . 325 Impact . | . . . . Slashing 301 | . . . 301 Piercing . | . . . . Highest Corruption 1 | . 1 1 . Average Corruption 1 | . 1 1 . Corruption Purged 1 | . . 1 . Corruption Blocked . | . . . . Effects 14 | . . 14 . Message Errors 3 | . . 3 . Matter Fused 2 | . . 2 . Heat Flow Errors 1 | . . 1 . Energy Discharges 1 | . . 1 . Data Loss (minor) 6 | . . 6 . Data Loss (major) 1 | . . 1 . Overload Shots . | . . . . Overflow Damage 172 | . . 53 119 Projectiles . | . . . . Explosions 104 | . . 53 51 Melee 68 | . . . 68 Knockbacks . | . . . . Impact . | . . . . Kinetic . | . . . . Secondary . | . . . . Self-Inflicted Damage 191 | . . 88 103 Shots 5 | . . 2 3 Rammed . | . . . . Targets Rammed . | . . . . Kicked . | . . . . Crushed . | . . . . Highest Temperature 302 | . 100 107 302 Average Temperature 64 | . 42 67 80 Received Heat Transfer 372 | . 69 99 204 Effects 1 | . . . 1 Interference 1 | . . . 1 Siege Activations . | . . . . Martial Activations . | . . . . Shielding Activations . | . . . . Robots Disrupted . | . . . . Combat Hostiles . | . . . . Robots Corrupted . | . . . . Combat Hostiles . | . . . . Parts Fried 2 | . . . 2 Impact Corruptions . | . . . . Robots Melted . | . . . . Combat Hostiles . | . . . . Parts Melted 1 | . . . 1 Heat Transferred . | . . . . Parts Sabotaged . | . . . . Parts Stolen . | . . . . Parts Stripped . | . . . . Power Chain Reactions . | . . . . Alert | -11 -10 -10 -8 ------- Run | Yrd Mat Sub Rec Maximum Alert Level . | . . . . Low Security (%) 100 | 100 100 . 100 Level 1 . | . . . . Level 2 . | . . . . Level 3 . | . . . . Level 4 . | . . . . Level 5 . | . . . . High Security . | . . . . Max Security . | . . . . Peak Influence 52 | 10 52 . 48 Initial 9 | . 3 . 9 Average 6 | 1 15 . 2 Influence Increases 519 | 60 133 210 116 Destroy 0b10 Robot/C 200 | . 60 140 . Destroy 0b10 Robot/NC 145 | 60 30 . 55 Destroy Leader 34 | . 24 10 . Successful Hack 15 | . 4 . 11 Disable Machine 45 | . . . 45 Destroy Structure 5 | . . . 5 Lose Combat Pursuer 75 | . 15 60 . Influence Decreases 519 | 55 138 190 136 Entered New Map 13 | . 2 . 11 Time Decay 456 | 55 136 160 105 Lost Part 50 | . . 30 20 Squads Dispatched 2 | . 2 . . Investigation 2 | . 2 . . Extermination . | . . . . Reinforcement . | . . . . Assault . | . . . . Garrison . | . . . . Intercept . | . . . . Searches Triggered . | . . . . Construction Impeded . | . . . . Haulers Reinforced . | . . . . Active Scanning Responses . | . . . . Cargo Convoy Interrupts . | . . . . Stealth | -11 -10 -10 -8 --------- Run | Yrd Mat Sub Rec Distress Signals 2 | . . . 2 Communications Jammed . | . . . . Distress Signals . | . . . . Times Spotted 35 | . 4 27 4 Peak Tracking Total 6 | . 2 6 5 Tactical Retreats 3 | . 1 2 . Traps | -11 -10 -10 -8 ------- Run | Yrd Mat Sub Rec Traps Triggered 1 | . 1 . . Indirectly . | . . . . Trap Hack Attempts . | . . . . Triggered . | . . . . Disarmed . | . . . . Reprogrammed . | . . . . Reused . | . . . . Traps Extracted . | . . . . Installed . | . . . . Triggered . | . . . . Most Traps Carried 5 | . . 5 5 Machines | -11 -10 -10 -8 ---------- Run | Yrd Mat Sub Rec Machines Disabled 4 | . . . 4 Max in Single Turn 3 | . . . 3 Machines Repaired . | . . . . Machines Dismantled . | . . . . Machines Sabotaged . | . . . . Overloaded Fab Kills . | . . . . Hacking | -11 -10 -10 -8 --------- Run | Yrd Mat Sub Rec Machines Accessed 10 | . 3 . 7 Terminals 5 | . 3 . 2 Fabricators . | . . . . Repair Stations . | . . . . Recycling Units 4 | . . . 4 Scanalyzers . | . . . . Garrison Access . | . . . . Total Hacks 22 | . 10 . 12 Successful 11 | . 3 . 8 Failed 11 | . 7 . 4 Catastrophic 1 | . 1 . . Database Lockouts . | . . . . Manual 20 | . 10 . 10 Terminals 15 | . 10 . 5 Fabricators . | . . . . Repair Stations . | . . . . Recycling Units 5 | . . . 5 Scanalyzers . | . . . . Garrison Access . | . . . . Terminal Hacks 3 | . . . 3 Level Access Points 1 | . . . 1 Release Object 2 | . . . 2 Fabricator Hacks . | . . . . Repair Station Hacks . | . . . . Recycling Unit Hacks . | . . . . Scanalyzer . | . . . . Garrison Access Hacks . | . . . . Unauthorized Hacks 8 | . 3 . 5 Terminals 4 | . 3 . 1 Botnet 4 | . 3 . 1 Fabricators . | . . . . Repair Stations . | . . . . Recycling Units 4 | . . . 4 Reject 4 | . . . 4 Scanalyzers . | . . . . Garrison Access . | . . . . Data Cores Recovered . | . . . . Used . | . . . . Hacking Detections 5 | . 3 . 2 Full Trace Events 2 | . 2 . . Feedback Events . | . . . . Feedback Blocked . | . . . . Robot Schematics Acquired . | . . . . Robots Built . | . . . . Authchips . | . . . . Time . | . . . . Total Robot Build Rating . | . . . . Part Schematics Acquired . | . . . . Parts Built . | . . . . Authchips . | . . . . Time . | . . . . Total Part Build Rating . | . . . . Part Studies Acquired . | . . . . Parts Repaired . | . . . . Time . | . . . . Parts Recycled . | . . . . Recycled Matter . | . . . . Retrieved Matter . | . . . . Retrieved Components . | . . . . Parts Scanalyzed . | . . . . Part Schematics Acquired . | . . . . Parts Damaged . | . . . . Bothacking | -11 -10 -10 -8 ------------ Run | Yrd Mat Sub Rec Used RIF Installer . | . . . . Robots Hacked . | . . . . Non-combat . | . . . . Combat . | . . . . Robot Hacks Applied . | . . . . Relay Couplers Released . | . . . . Fabnet Peak Effective % . | . . . . Robots Rewired . | . . . . Allies Hacked . | . . . . Hacks Repelled . | . . . . Allies | -11 -10 -10 -8 -------- Run | Yrd Mat Sub Rec Total Allies . | . . . . Largest Group . | . . . . Highest-Rated Group . | . . . . Highest-Rated Ally . | . . . . Total Orders . | . . . . Ally Attacks . | . . . . Total Damage . | . . . . Kills . | . . . . Allies Corrupted . | . . . . Allies Melted . | . . . . Intel | -11 -10 -10 -8 ------- Run | Yrd Mat Sub Rec Active Infowar (turns) 2295 | 7 372 1837 79 Structural 1915 | . . 1836 79 Seismic 380 | 7 372 1 . Robot Analysis Total . | . . . . Derelict Logs Recovered 2 | . . 2 . Drone Launches . | . . . . Drone Recoveries . | . . . . Exploration | -11 -10 -10 -8 ------------- Run | Yrd Mat Sub Rec Turns Passed 3788 | 355 396 2388 649 Spaces Moved 2159 | 132 221 1415 391 Core 39 | . . . 39 Treads . | . . . . Legs 39 | 39 . . . Wheels 2081 | 93 221 1415 352 Hover . | . . . . Flight . | . . . . Fastest Speed 50 | 90 90 135 50 Average Speed 126 | 98 104 137 108 Slowest Speed 200 | 120 135 200 140 Overloaded Moves . | . . . . Propulsion Burnouts . | . . . . Robots Hopped . | . . . . Potential Cave-ins . | . . . . Cave-ins Triggered . | . . . . Exploration Rate (%) 42 | 6 37 66 59 Regions Visited 3 Branch Regions 2 Pre-discovered Areas . | . . . . Known Exits Taken . | . . . . Unknown Exits Taken 3 | 1 1 1 . Scrap Searched 8 | . . 8 . Spaces Dug 4 | . . 4 . Terrain Destroyed 53 | . . 48 5 Melee 2 | . . 2 . Projectile 3 | . . 3 . AOE 48 | . . 43 5 Terrain Rammed . | . . . . Walls Destroyed . | . . . . Machines Disabled . | . . . . Actions | -11 -10 -10 -8 --------- Run | Yrd Mat Sub Rec Total 2870 | 225 313 1748 584 Wait 421 | . 40 246 135 Move 2156 | 131 220 1414 391 Hop . | . . . . Pick Up 32 | 4 7 13 8 Fast Attach 3 | 1 1 . 1 Attach 8 | 2 . 5 1 Detach 1 | . 1 . . Swap 32 | . 4 23 5 Drop 20 | 4 3 1 12 Fire 189 | 83 37 43 26 Melee 8 | . . 3 5 Ram . | . . . . Kick . | . . . . Crush . | . . . . Escape Stasis . | . . . . Rewire . | . . . . Trap . | . . . . Miscellaneous . | . . . . Route ------- -11/Scrapyard -10/Materials (discovered 2 exits: [*Mat] / [*Sub]) -10/Subcaves (discovered 3 exits: [*Mat x2] / *Rec) -8/Recycling (discovered 1 exit: Fac) History --------- Turn | Location | Event 43 | -11/Scrapyard | Discovered new exit (range 3) 356 | -11/Scrapyard | Entered Materials 370 | -10/Materials | Build established: Mutant 648 | -10/Materials | Discovered new exit (range 6) 747 | -10/Materials | Discovered new exit (range 3) 752 | -10/Materials | Entered Subcaves 799 | -10/Subcaves | Discovered new exit (range 13) 887 | -10/Subcaves | Disturbed a concealed Subdweller 953 | -10/Subcaves | Ambushed by swarm of Subdwellers 1588 | -10/Subcaves | A swath of the cavern ceiling suddenly collapsed 1631 | -10/Subcaves | Shifting Twisted Machinery released Sub. Power Source 1764 | -10/Subcaves | A swath of the cavern ceiling suddenly collapsed 1817 | -10/Subcaves | Ambushed by Subdwellers from Twisted Machinery 1850 | -10/Subcaves | Discovered new exit (range 8) 1936 | -10/Subcaves | Discovered new exit (range 6) 1948 | -10/Subcaves | Learned 2 Materials zone layouts 2025 | -10/Subcaves | Learned Materials security intel 2747 | -10/Subcaves | Core integrity fell below 50% 3140 | -10/Subcaves | Entered Recycling 3192 | -8/Recycling | Scanned before Scraplab entrance 3208 | -8/Recycling | Discovered new exit (range 11) 3212 | -8/Recycling | Entered Scraplab 3225 | -8/Recycling | Angered Scraplab inhabitants 3226 | -8/Recycling | Found Prototype Device 3239 | -8/Recycling | Core integrity fell below 20% 3246 | -8/Recycling | Identified Scrap Engine 3578 | -8/Recycling | Build established: Construct 3756 | -8/Recycling | Identified exit to Factory 3789 | -8/Recycling | Destroyed by Y-45 Defender with Heavy Assault Rifle Last Messages --------------- 03692_ Tractor Beam fried. 03692_ R-06 Scavenger destroyed. 03697_ Arm. Scrap Engine consumes Lgt. Ion Engine. 03698_ Arm. Scrap Engine consumes Com. Wheel. 03699_ Arm. Scrap Engine consumes Corrupted Com. Wheel. 03700_ Arm. Scrap Engine consumes Corrupted Lgt. Ion Engine. 03700_ Acquired 22 matter. 03702_ Arm. Scrap Engine consumes Corrupted Com. Wheel. 03723_ Arm. Scrap Engine consumes Com. Wheel. 03739_ Connecting with Terminal... >>Trojan(Botnet) Trojan loaded successfully. Testing... Terminal linked with 0 systems. Awaiting botnet instructions. >>Access(Main) Found 1 level access point to Factory: (8,79) Map updated. 03773_ R-06 Scavenger sends out distress signal. Map ----- +----------------------------------------------------+ | ?????????????????????????????????????????????????# | | ?????????????????????????????????????????????????? | | ?????????????????????????????????????????????????? | | ????????????????????????????????????????????###### | | ???????????????????????????????????????+ | | ??????????????????????????????????????????????#### | | ?????????????????????????????????????????######### | | ?????????????????????????????????????????# | | ?????????????????????????????????????????# ! | | ?????????????????????????????????????????# % | | ????????????????????????????? ?????????# % % | | ????????????????????????????? +????????# | | ????????????????????????????? #????????# | | ????????????????????????????? #????????# | | ????????????????????????????# #????????# | | ????????????????????????????# #????????# % | | ????????????????????????????# #????????######### | | ????????????????????????????# #????????????????? | | ????????????????????????????# #????????????????? | | ????????????????????????????# #???############## | | ???????????????????????????## #???# ! % | | ???????????????????????????# #???# ! ! ! !! ! | | ????????????????????????????# ##### !%! ! ! | | ????????????????????????????# + % !%! | | ?????????????????+##+######## ##########+####### | | ?????????? rr @ Y #????????# | | ?????????? ###########+#######?###!#####+# | | ???????????????????????# #?#""!### | | ???????????????????????# " " " #?#"Y ""# " | | ???????????????????????# """ """ """ ###""!Y"# """ | | ????